bitfinex/quotes_SOLUSD_20241101
["timestamp","ask_amount","ask_price","bid_price","bid_amount"]
[1730419560326,8.98422573,169.0,168.98,6.17914831]
[1730419560515,8.98422573,168.99,168.98,6.17914831]
[1730419560720,8.98422573,169.0,168.98,6.17914831]
[1730419561224,8.98422573,169.02,168.99,0.12549]
[1730419561532,8.98422573,169.01,168.99,0.12549]
[1730419562328,14.90112573,169.01,168.99,0.12549]
[1730419562954,8.98422573,169.0,168.99,0.12549]
[1730419563639,8.98422573,169.0,168.98,6.17914831]
[1730419563844,8.98422573,168.99,168.96,0.25098]
[1730419564042,8.98422573,168.99,168.98,0.12549]
[1730419564553,14.90172573,168.99,168.98,0.12549]
[1730419569149,8.98422573,168.99,168.98,0.12549]
[1730419571752,14.90132573,169.0,168.98,0.12549]
[1730419572249,5.9171,169.0,168.98,0.12549]
[1730419574658,8.98422573,169.0,168.98,0.12549]
[1730419574827,8.98422573,169.01,168.98,0.12549]
[1730419575026,8.98422573,169.02,168.98,6.29417]
[1730419575226,14.90032573,169.03,168.98,6.29417]
[1730419578140,8.98422573,169.0,168.98,0.37647]
[1730419578359,8.98422573,169.01,168.98,0.37647]
[1730419579563,14.90082573,169.02,168.98,0.37647]
[1730419580833,14.90082573,169.02,168.98,6.29417]
[1730419583437,14.90082573,169.02,168.98,0.12549]
[1730419583947,8.98422573,169.01,168.98,0.12549]
[1730419585563,14.90102573,169.01,168.98,0.12549]
[1730419588167,5.9168,169.01,168.98,0.12549]
[1730419588774,14.90072573,169.02,168.98,6.04319]
[1730419592280,14.90072573,169.02,168.98,0.12549]
[1730419593451,8.98422573,169.03,168.98,0.12549]
[1730419593647,14.90032573,169.03,168.98,6.04319]
[1730419594167,14.90032573,169.03,168.98,0.12549]
[1730419596175,8.98422573,169.02,168.98,0.12549]
[1730419596481,14.90082573,169.02,168.98,0.12549]
[1730419600705,5.9166,169.02,168.98,6.04329]
[1730419601772,5.9166,169.02,168.98,0.12549]
[1730419602785,5.9166,169.02,168.98,15.02741573]
[1730419603891,15.46502573,169.04,168.98,15.02741573]
[1730419604202,25.9161,169.03,169.0,0.12549]
[1730419607105,34.90032573,169.03,169.0,0.12549]
[1730419607670,14.90072573,169.02,169.0,0.12549]
[1730419608372,5.9165,169.02,169.0,0.12549]
[1730419613590,25.9162,169.03,169.0,0.12549]
[1730419615591,20.0,169.03,169.0,6.04249]
[1730419615799,20.0,169.04,169.0,29.69402573]
[1730419615979,20.0,169.04,169.01,0.25098]
[1730419616182,20.0,169.04,169.02,0.12549]
[1730419617174,8.98422573,169.03,168.98,6.17885152]
[1730419617397,14.90092573,169.02,168.98,6.17885152]
[1730419617585,5.9167,169.02,168.99,0.12549]
[1730419620800,28.98422573,169.04,168.99,0.12549]
[1730419621007,5.9161,169.03,168.99,0.12549]
[1730419621200,14.90032573,169.03,168.99,0.12549]
[1730419622209,5.9161,169.03,168.99,0.12549]
[1730419623480,28.98422573,169.04,169.0,8.98422573]
[1730419623481,25.9157,169.04,169.0,8.98422573]
[1730419623686,25.9157,169.04,169.01,0.12549]
[1730419624590,25.9157,169.04,169.0,0.25098]
[1730419625006,25.9157,169.04,169.0,15.15220573]
[1730419625708,20.0,169.05,169.02,0.12549]
[1730419625913,34.89962573,169.05,169.02,0.12549]
[1730419626131,25.9154,169.05,169.02,0.12549]
[1730419626412,34.89962573,169.05,169.02,0.12549]
[1730419629300,20.0,169.03,169.02,0.12549]
[1730419631411,20.0,169.03,169.01,0.25098]
[1730419631710,20.0,169.03,169.02,0.12549]
[1730419632418,20.0,169.03,168.99,12.09604174]
[1730419632419,34.90032573,169.03,168.99,6.17864174]
[1730419632605,8.98422573,169.02,168.99,6.17864174]
[1730419632800,5.9164,169.02,168.99,6.17864174]
[1730419633112,5.9164,169.02,168.99,15.16286747]
[1730419633319,5.9164,169.02,169.0,0.12549]
[1730419636431,25.9161,169.03,169.0,0.12549]
[1730419647900,25.9161,169.03,169.0,9.10971573]
[1730419648040,25.9161,169.03,169.0,0.12549]
[1730419649934,34.90032573,169.03,169.0,0.12549]
[1730419650245,8.98422573,169.02,168.99,6.17864174]
[1730419652236,5.9168,169.01,168.99,6.17864174]
[1730419654131,28.98422573,169.03,168.99,6.17864174]
[1730419654326,5.9164,169.02,168.99,6.17864174]
[1730419656927,14.90062573,169.02,168.99,6.17864174]
[1730419658512,5.9164,169.02,168.99,6.17864174]
[1730419663240,8.98422573,169.01,168.99,6.17864174]
[1730419663448,8.98422573,169.01,168.95,14.90302573]
[1730419663734,8.98422573,169.01,168.97,6.18017044]
[1730419664842,14.90062573,169.02,168.97,15.16439617]
[1730419666144,5.9164,169.02,168.97,15.16439617]
[1730419667056,5.9164,169.02,168.99,8.98422573]
[1730419668157,25.9163,169.03,169.0,8.98422573]
[1730419671241,25.9163,169.03,169.0,0.12549]
[1730419673459,8.98422573,169.02,168.98,14.7946]
[1730419673640,8.98422573,169.02,168.97,15.16439617]
[1730419674557,8.98422573,169.02,168.98,0.12549]
[1730419674772,34.90052573,169.03,168.98,0.12549]
[1730419675137,34.90052573,169.03,168.98,9.10971573]
[1730419675957,25.9163,169.03,169.0,0.12549]
[1730419676137,25.9163,169.03,169.0,9.10971573]
[1730419676563,25.9158,169.04,169.0,9.10971573]
[1730419680967,25.9158,169.04,169.01,23.776884]
[1730419681884,8.98422573,169.03,169.0,0.12549]
[1730419682167,34.90002573,169.04,169.0,0.12549]
[1730419683973,25.9158,169.04,169.0,0.12549]
[1730419684170,25.9158,169.04,169.01,23.776884]
[1730419698576,25.9158,169.04,169.01,32.76110973]
[1730419701277,34.90002573,169.04,169.01,23.776884]
[1730419701483,8.98422573,169.03,169.01,23.776884]
[1730419701780,20.0,169.01,168.96,8.98422573]
[1730419701992,8.98422573,169.01,168.97,0.12549]
[1730419702166,20.0,169.01,168.97,0.12549]
[1730419702566,20.0,169.01,168.97,9.10971573]
[1730419702772,20.0,169.01,168.98,23.776884]
[1730419703380,5.9171,169.0,168.97,23.902374]
[1730419703553,5.9171,169.0,168.97,32.88659973]
[1730419705891,5.9171,169.0,168.97,23.902374]
[1730419716982,20.0,169.02,168.97,53.59999973]
[1730419717681,20.0,169.02,168.97,44.615774]
[1730419717885,28.98422573,169.02,168.97,44.615774]
[1730419718082,34.90082573,169.02,168.97,44.615774]
[1730419718995,34.90082573,169.02,168.97,38.697874]
[1730419720073,34.90082573,169.02,168.97,44.616074]
[1730419721783,14.90082573,169.02,168.97,44.616074]
[1730419722206,14.90082573,169.02,168.97,53.60029973]
[1730419724392,14.90082573,169.02,168.97,44.616074]
[1730419725573,8.98422573,169.0,168.97,23.902374]
[1730419726201,8.98422573,169.01,168.97,23.902374]
[1730419726896,14.90082573,169.02,168.97,29.820474]
[1730419727193,5.9166,169.02,168.97,38.80469973]
[1730419727492,20.0,169.03,169.01,23.902374]
[1730419727698,20.0,169.03,169.01,23.776884]
[1730419727875,20.0,169.05,169.01,23.776884]
[1730419728787,8.98422573,169.02,169.01,23.776884]
[1730419729799,14.90062573,169.02,169.01,23.776884]
[1730419731596,5.9164,169.02,169.01,23.776884]
[1730419735417,14.90062573,169.02,169.01,23.776884]
[1730419743595,20.0,169.01,168.97,6.17526453]
[1730419743798,8.98422573,168.99,168.97,6.17526453]
[1730419744324,8.98422573,168.99,168.94,9.10971573]
[1730419744525,8.98422573,168.99,168.94,15.28786777]
[1730419745300,5.9178,168.98,168.96,0.12549]
[1730419750332,14.90202573,168.98,168.96,0.12549]
[1730419750833,8.98422573,168.99,168.96,0.12549]
[1730419751731,5.9171,169.0,168.94,6.17815204]
[1730419751732,8.98422573,168.97,168.94,6.17815204]
[1730419752110,8.98422573,168.95,168.94,6.17815204]
[1730419752934,14.90312573,168.95,168.94,6.17815204]
[1730419753432,20.0,168.94,168.87,8.98422573]
[1730419753629,8.98422573,168.93,168.87,8.98422573]
[1730419753939,8.98422573,168.93,168.85,14.8055]
[1730419753940,8.98422573,168.93,168.9,0.12549]
[1730419754518,5.9199,168.92,168.9,0.12549]
[1730419754732,5.9199,168.92,168.9,23.902374]
[1730419754940,5.9199,168.92,168.9,23.776884]
[1730419755934,14.90412573,168.92,168.9,23.776884]
[1730419759653,20.0,168.92,168.9,23.776884]
[1730419761744,8.98422573,168.95,168.91,0.12549]
[1730419761953,8.98422573,168.97,168.92,32.76110973]
[1730419762122,14.90202573,168.98,168.93,0.12549]
[1730419762320,14.90202573,168.98,168.93,9.10971573]
[1730419762751,14.90202573,168.98,168.94,23.776884]
[1730419763447,5.9185,168.96,168.93,23.902374]
[1730419768653,5.9185,168.96,168.93,32.88659973]
[1730419769855,5.9185,168.96,168.93,0.12549]
[1730419773849,5.9185,168.96,168.93,9.10971573]
[1730419774050,25.9181,168.98,168.94,23.776884]
[1730419774243,34.90232573,168.98,168.94,23.776884]
[1730419777438,25.9181,168.98,168.94,32.76110973]
[1730419777632,29.61825586,169.16,168.97,9.10971573]
[1730419777633,5.9174,169.0,168.97,9.10971573]
[1730419777959,14.90162573,169.0,168.98,23.776884]
[1730419778127,8.98422573,168.99,168.98,23.776884]
[1730419778330,8.98422573,168.99,168.92,8.98422573]
[1730419778547,8.98422573,168.99,168.93,8.98422573]
[1730419778753,8.98422573,168.99,168.94,23.776884]
[1730419778961,8.98422573,168.99,168.94,8.98422573]
[1730419779371,8.98422573,168.99,168.95,23.776884]
[1730419779535,5.9178,168.98,168.95,23.776884]
[1730419781859,5.9178,168.98,168.94,23.776884]
[1730419784077,5.9178,168.98,168.95,9.10971573]
[1730419784247,5.9178,168.98,168.96,23.776884]
[1730419784957,25.9171,169.0,168.96,23.776884]
[1730419785352,25.9171,169.0,168.98,23.776884]
[1730419785755,25.9171,169.0,168.97,23.902374]
[1730419787561,25.9171,169.0,168.96,23.902374]
[1730419794962,34.90132573,169.0,168.96,23.902374]
[1730419796245,5.9178,168.98,168.95,23.902374]
[1730419796478,14.90202573,168.98,168.95,0.12549]
[1730419801666,14.90202573,168.98,168.94,23.776884]
[1730419801870,5.9178,168.98,168.94,23.776884]
[1730419809278,8.98422573,168.97,168.94,23.776884]
[1730419811185,5.9185,168.96,168.94,23.776884]
[1730419812384,8.98422573,168.95,168.93,6.17713207]
[1730419812683,5.9185,168.96,168.9,14.8013]
[1730419812684,8.98422573,168.94,168.91,23.902374]
[1730419812888,8.98422573,168.94,168.91,0.12549]
[1730419813065,8.98422573,168.94,168.93,23.776884]
[1730419813266,8.98422573,168.95,168.93,23.776884]
[1730419813479,5.9185,168.96,168.93,23.776884]
[1730419817288,5.9185,168.96,168.93,32.76110973]
[1730419818492,23.77882573,168.98,168.93,32.76110973]
[1730419818669,5.9182,168.97,168.93,32.76110973]
[1730419819681,14.90242573,168.97,168.93,23.776884]
[1730419820478,8.98422573,168.96,168.93,23.776884]
[1730419821693,5.9189,168.95,168.93,23.776884]
[1730419822101,8.98422573,168.94,168.92,6.17885618]
[1730419822292,8.98422573,168.93,168.92,6.17885618]
[1730419822469,8.98422573,168.93,168.89,0.12549]
[1730419822794,8.98422573,168.93,168.89,6.30487851]
[1730419822981,8.98422573,168.94,168.89,6.30487851]
[1730419823297,14.90312573,168.95,168.89,15.28910424]
[1730419823879,14.90312573,168.95,168.9,23.776884]
[1730419825295,14.90312573,168.95,168.91,0.12549]
[1730419825482,5.9189,168.95,168.91,0.12549]
[1730419830010,14.90312573,168.95,168.91,0.12549]
[1730419830217,8.98422573,168.94,168.91,0.12549]
[1730419831599,5.9196,168.93,168.91,0.12549]
[1730419832232,5.9196,168.93,168.92,23.776884]
[1730419832684,5.9196,168.93,168.91,23.902374]
[1730419833715,34.90312573,168.95,168.91,23.902374]
[1730419834694,5.9189,168.95,168.93,23.902374]
[1730419836024,5.9185,168.96,168.93,23.902374]
[1730419839541,5.9185,168.96,168.93,32.88659973]
[1730419840736,5.9175,168.99,168.95,8.98422573]
[1730419840938,14.90172573,168.99,168.96,23.776884]
[1730419841234,14.90172573,168.99,168.95,23.902374]
[1730419841542,8.98422573,168.98,168.94,23.902374]
[1730419841712,8.98422573,168.98,168.94,0.12549]
[1730419842541,5.9182,168.97,168.94,0.12549]
[1730419844340,8.98422573,168.97,168.94,0.12549]
[1730419845145,8.98422573,168.98,168.94,0.12549]
[1730419847844,5.9182,168.97,168.94,0.12549]
[1730419849843,8.98422573,168.97,168.94,0.12549]
[1730419852256,5.9185,168.96,168.94,0.12549]
[1730419862869,8.98422573,168.98,168.94,0.12549]
[1730419864276,8.98422573,168.97,168.94,0.12549]
[1730419866868,8.98422573,168.98,168.94,0.12549]
[1730419867076,5.9182,168.97,168.94,0.12549]
[1730419869790,14.7931,169.0,168.96,0.12549]
[1730419869949,5.9171,169.0,168.96,23.902374]
[1730419870857,14.90132573,169.0,168.96,23.902374]
[1730419871376,5.9171,169.0,168.96,23.902374]
[1730419871778,14.90132573,169.0,168.96,23.902374]
[1730419872882,8.98422573,169.01,168.96,9.10971573]
[1730419873070,8.98422573,169.01,168.98,0.12549]
[1730419874278,5.9171,169.0,168.98,0.12549]
[1730419877462,5.9171,169.0,168.98,0.37647]
[1730419878256,14.90132573,169.0,168.98,0.37647]
[1730419879464,8.98422573,169.01,168.98,0.37647]
[1730419881569,14.90132573,169.01,168.98,0.37647]
[1730419886767,8.98422573,168.99,168.98,0.37647]
[1730419886977,8.98422573,169.0,168.98,0.37647]
[1730419889372,8.98422573,169.01,168.98,0.37647]
[1730419889764,5.9161,169.03,169.0,0.37647]
[1730419889961,14.90032573,169.03,169.0,0.37647]
[1730419892090,8.98422573,169.02,169.0,0.37647]
[1730419893269,14.90082573,169.02,169.0,0.37647]
[1730419901686,14.90082573,169.02,168.97,20.96899794]
[1730419901687,8.98422573,169.01,168.97,6.17439794]
[1730419901899,8.98422573,168.99,168.97,6.17439794]
[1730419902392,8.98422573,168.99,168.98,0.12549]
[1730419903402,8.98422573,168.99,168.98,23.902374]
[1730419903580,5.9175,168.99,168.98,23.902374]
[1730419908221,8.98422573,168.99,168.98,23.902374]
[1730419910738,14.90172573,168.99,168.98,23.902374]
[1730419925931,8.98422573,168.99,168.98,23.902374]
[1730419926430,14.90172573,168.99,168.98,23.902374]
[1730419927841,8.98422573,169.0,168.98,23.902374]
[1730419930444,5.9175,168.99,168.98,23.902374]
[1730419931247,14.90172573,168.99,168.98,23.902374]
[1730419936840,14.90172573,168.99,168.98,23.776884]
[1730419940456,14.90172573,168.99,168.97,6.17439794]
[1730419940751,8.98422573,168.98,168.97,6.17439794]
[1730419941327,8.98422573,168.98,168.9,14.8016]
[1730419941527,8.98422573,168.92,168.87,24.08362573]
[1730419941830,8.98422573,168.93,168.91,6.181303]
[1730419942137,8.98422573,168.93,168.89,0.12549]
[1730419942340,8.98422573,168.93,168.91,0.12549]
[1730419942540,8.98422573,168.92,168.91,0.12549]
[1730419942741,8.98422573,168.92,168.91,23.902374]
[1730419942935,14.90402573,168.93,168.91,23.902374]
[1730419943353,8.98422573,168.92,168.9,6.1816136]
[1730419943532,8.98422573,168.91,168.9,6.1816136]
[1730419944634,14.90452573,168.91,168.9,6.1816136]
[1730419944882,14.90452573,168.91,168.84,23.79052573]
[1730419945033,8.98422573,168.89,168.84,23.79052573]
[1730419945240,8.98422573,168.88,168.87,6.18217482]
[1730419945447,8.98422573,168.89,168.84,20.729]
[1730419945650,8.98422573,168.89,168.87,0.12549]
[1730419946031,8.98422573,168.89,168.87,23.902374]
[1730419946354,14.90522573,168.89,168.87,23.902374]
[1730419949462,8.98422573,168.9,168.87,23.902374]
[1730419949961,8.98422573,168.89,168.87,23.902374]
[1730419952563,14.90532573,168.89,168.87,23.902374]
[1730419952749,8.98422573,168.88,168.87,23.776884]
[1730419961651,14.90552573,168.88,168.87,23.776884]
[1730419973588,14.90552573,168.88,168.84,23.776884]
[1730419973744,8.98422573,168.86,168.85,0.12549]
[1730419975364,14.90592573,168.87,168.85,0.12549]
[1730419975683,8.98422573,168.88,168.85,0.37647]
[1730419975979,8.98422573,168.89,168.85,0.25098]
[1730419976384,8.98422573,168.89,168.86,0.12549]
[1730419976883,14.90542573,168.89,168.86,0.12549]
[1730419978601,8.98422573,168.88,168.86,0.12549]
[1730419980379,8.98422573,168.9,168.86,24.153354]
[1730419980584,14.90482573,168.9,168.86,24.153354]
[1730419981386,8.98422573,168.89,168.85,23.776884]
[1730419981979,8.98422573,168.9,168.86,0.37647]
[1730419982180,8.98422573,168.9,168.86,6.29837]
[1730419982372,8.98422573,168.9,168.88,0.12549]
[1730419987274,8.98422573,168.91,168.88,0.37647]
[1730419987472,8.98422573,168.92,168.88,0.37647]
[1730419987988,14.90432573,168.92,168.88,0.37647]
[1730419989694,8.98422573,168.91,168.88,0.37647]
[1730419990689,8.98422573,168.9,168.88,0.37647]
[1730419992501,8.98422573,168.91,168.88,0.37647]
[1730419993698,14.90452573,168.91,168.88,0.37647]
[1730419994000,5.9203,168.91,168.88,0.37647]
[1730419994903,14.90382573,168.93,168.88,0.37647]
[1730419995397,6.6152,168.94,168.88,0.37647]
[1730419995398,14.90342573,168.94,168.9,0.37647]
[1730419999101,8.98422573,168.93,168.9,0.37647]
[1730420001179,14.90382573,168.93,168.9,0.37647]
[1730420007805,16.1549,168.96,168.9,0.37647]
[1730420007806,14.90322573,168.95,168.92,0.12549]
[1730420008387,14.90242573,168.97,168.94,0.12549]
[1730420012888,8.98422573,168.98,168.94,0.37647]
[1730420013094,14.90172573,168.99,168.94,0.37647]
[1730420013315,8.98422573,168.98,168.96,0.12549]
[1730420014422,14.90172573,168.99,168.96,0.12549]
[1730420016419,14.90172573,168.99,168.96,0.37647]
[1730420016420,8.98422573,168.99,168.96,0.37647]
[1730420016601,14.90142573,169.0,168.96,6.29497]
[1730420016794,8.98422573,168.99,168.98,0.12549]
[1730420018840,14.90172573,168.99,168.98,0.12549]
[1730420019701,6.1925,169.02,168.98,0.12549]
[1730420019702,8.98422573,169.0,168.98,0.12549]
[1730420021127,8.98422573,169.0,168.98,0.37647]
[1730420021711,8.98422573,169.01,168.98,0.37647]
[1730420021914,8.98422573,169.02,169.0,0.12549]
[1730420022899,8.98422573,169.01,169.0,0.12549]
[1730420023411,8.98422573,169.02,169.0,0.12549]
[1730420024006,8.98422573,169.01,169.0,0.37647]
[1730420024398,8.98422573,169.01,169.0,0.12549]
[1730420025320,14.90102573,169.01,169.0,0.12549]
[1730420027421,8.98422573,169.01,169.0,0.12549]
[1730420034728,14.90102573,169.01,169.0,0.12549]
[1730420036737,14.90102573,169.01,168.98,23.776884]
[1730420036949,8.98422573,168.99,168.98,23.776884]
[1730420038442,14.90172573,168.99,168.98,23.776884]
[1730420038828,8.98422573,168.99,168.98,23.902374]
[1730420039333,8.98422573,168.99,168.98,0.12549]
[1730420039626,8.98422573,169.0,168.99,0.12549]
[1730420039832,8.98422573,169.0,168.98,0.12549]
[1730420042849,8.98422573,169.01,168.98,6.04329]
[1730420043223,8.98422573,169.01,169.0,0.12549]
[1730420070074,14.90102573,169.01,169.0,0.12549]
[1730420075972,8.98422573,169.02,169.0,0.12549]
[1730420077067,8.98422573,169.03,169.0,0.37647]
[1730420077365,8.98422573,169.02,169.0,0.37647]
[1730420078583,8.98422573,169.01,169.0,0.37647]
[1730420080557,8.98422573,169.02,169.0,0.37647]
[1730420084980,14.90092573,169.02,169.0,0.37647]
[1730420086184,8.98422573,169.03,169.0,0.37647]
[1730420087380,5.9164,169.02,169.0,0.37647]
[1730420090783,25.9157,169.04,169.0,0.37647]
[1730420090996,25.9157,169.04,169.02,0.12549]
[1730420091493,25.9157,169.04,169.01,0.12549]
[1730420092469,34.89992573,169.04,169.01,0.12549]
[1730420092783,8.98422573,169.03,169.01,0.12549]
[1730420092977,8.98422573,169.02,168.99,23.776884]
[1730420093186,8.98422573,169.01,168.99,23.776884]
[1730420093390,8.98422573,169.01,169.0,0.12549]
[1730420094091,8.98422573,169.02,169.0,0.12549]
[1730420094589,7.98422573,169.02,169.0,0.12549]
[1730420095789,8.98422573,169.01,169.0,0.12549]
[1730420099471,8.98422573,169.02,169.0,0.12549]
[1730420100712,14.90092573,169.02,169.0,0.12549]
[1730420103591,28.98422573,169.04,169.0,0.37647]
[1730420103892,8.98422573,169.02,169.0,0.37647]
[1730420104290,8.98422573,169.01,169.0,0.12549]
[1730420105192,8.98422573,169.02,169.0,0.12549]
[1730420105396,8.98422573,169.01,169.0,0.12549]
[1730420107311,14.90102573,169.01,169.0,0.12549]
[1730420110013,14.90102573,169.01,168.99,23.776884]
[1730420110308,8.98422573,169.0,168.99,23.776884]
[1730420110484,8.98422573,169.0,168.99,0.12549]
[1730420111583,8.98422573,169.02,168.98,23.776884]
[1730420112220,8.98422573,169.03,168.99,0.37647]
[1730420112585,8.98422573,169.02,168.99,0.37647]
[1730420113385,14.90072573,169.02,168.99,0.37647]
[1730420113804,8.98422573,169.02,168.99,0.37647]
[1730420114011,14.90042573,169.03,168.99,0.37647]
[1730420114212,5.9162,169.03,168.99,0.37647]
[1730420114508,14.90042573,169.03,168.99,0.37647]
[1730420118995,5.9162,169.03,168.99,0.37647]
[1730420120212,5.9162,169.03,169.0,23.776884]
[1730420120418,5.9162,169.03,169.01,0.12549]
[1730420120912,8.98422573,169.02,168.99,23.776884]
[1730420121608,8.98422573,169.02,169.0,0.12549]
[1730420121987,8.98422573,169.03,169.0,0.12549]
[1730420122811,5.9164,169.02,169.0,0.12549]
[1730420123015,14.90062573,169.02,169.0,0.12549]
[1730420123518,8.98422573,169.01,168.99,23.776884]
[1730420123911,8.98422573,169.0,168.98,6.15932812]
[1730420124093,8.98422573,168.99,168.95,14.7968]
[1730420124414,8.98422573,168.99,168.96,0.12549]
[1730420125195,8.98422573,168.99,168.96,23.902374]
[1730420125408,8.98422573,168.98,168.96,23.902374]
[1730420126007,14.90172573,168.99,168.96,23.902374]
[1730420130817,8.98422573,169.0,168.96,23.902374]
[1730420131602,28.98422573,169.02,168.98,0.12549]
[1730420132027,8.98422573,169.01,168.98,0.12549]
[1730420132332,8.98422573,169.0,168.96,38.573284]
[1730420133727,8.98422573,169.0,168.97,0.12549]
[1730420133927,14.90152573,169.0,168.97,0.12549]
[1730420138835,8.98422573,168.99,168.97,0.12549]
[1730420145735,14.90152573,169.0,168.97,0.12549]
[1730420147734,8.98422573,168.99,168.97,0.12549]
[1730420149133,14.90152573,169.0,168.97,0.12549]
[1730420149720,13.40152573,169.0,168.97,0.12549]
[1730420149928,8.98422573,169.0,168.97,0.12549]
[1730420150132,8.98422573,168.99,168.97,0.12549]
[1730420152240,14.90152573,169.0,168.97,0.12549]
[1730420156019,34.90092573,169.02,168.97,15.04648]
[1730420156223,25.9167,169.02,168.99,0.12549]
[1730420157242,34.90092573,169.02,168.99,0.12549]
[1730420160445,25.9167,169.02,168.99,0.12549]
[1730420160638,20.0,169.02,168.99,6.04279]
[1730420160820,28.98422573,169.02,168.99,0.12549]
[1730420165144,16.5129,169.05,168.99,0.12549]
[1730420165365,8.98422573,169.04,168.99,0.12549]
[1730420165547,34.89992573,169.04,168.99,9.10971573]
[1730420165752,28.98422573,169.03,169.0,23.776884]
[1730420166266,28.98422573,169.03,168.99,0.12549]
[1730420166736,5.9164,169.02,168.99,0.12549]
[1730420176537,20.0,169.04,169.01,0.12549]
[1730420181856,8.98422573,169.02,168.97,29.94363988]
[1730420182238,5.9161,169.03,168.98,8.98422573]
[1730420182639,5.9161,169.03,169.0,0.12549]
[1730420183854,5.9161,169.03,169.0,23.902374]
[1730420184540,20.0,169.03,169.0,23.902374]
[1730420185367,20.0,169.03,169.01,8.98422573]
[1730420185749,20.0,169.03,169.02,23.776884]
[1730420186845,20.0,169.03,169.01,23.776884]
[1730420187145,20.0,169.03,169.0,32.88659973]
[1730420188651,34.89962573,169.05,169.0,23.902374]
[1730420188958,34.89962573,169.05,169.01,23.776884]
[1730420189163,25.9154,169.05,169.01,23.776884]
[1730420189747,25.9154,169.05,169.0,32.88659973]
[1730420194349,25.9154,169.05,169.01,8.98422573]
[1730420194761,25.9154,169.05,169.02,23.776884]
[1730420200545,34.89962573,169.05,168.99,23.776884]
[1730420200747,20.0,169.03,169.0,23.776884]
[1730420201181,20.0,169.03,168.99,23.776884]
[1730420201546,8.98422573,169.04,168.99,23.776884]
[1730420201547,20.0,169.04,168.99,32.76110973]
[1730420201747,5.9161,169.03,168.99,32.76110973]
[1730420205279,5.9161,169.03,169.0,8.98422573]
[1730420205875,5.9161,169.03,169.01,23.776884]
[1730420208476,5.9161,169.03,169.0,23.776884]
[1730420208684,14.90032573,169.03,168.99,23.776884]
[1730420208984,5.9161,169.03,168.99,23.776884]
[1730420209166,5.9161,169.03,168.99,32.76110973]
[1730420210786,28.98422573,169.02,168.98,6.15820738]
[1730420210959,28.98422573,169.02,168.97,23.776884]
[1730420211302,28.98422573,169.02,168.97,32.76110973]
[1730420212068,8.98422573,169.01,168.96,32.76110973]
[1730420212463,29.08422573,169.02,168.96,8.98422573]
[1730420212662,20.0,169.0,168.95,15.14088384]
[1730420213761,5.9175,168.99,168.96,23.776884]
[1730420214880,5.9175,168.99,168.96,32.76110973]
[1730420215086,5.9175,168.99,168.97,8.98422573]
[1730420215591,5.9175,168.99,168.96,32.76110973]
[1730420216290,5.9175,168.99,168.96,23.776884]
[1730420219898,8.98422573,168.97,168.96,23.776884]
[1730420220202,28.98422573,168.97,168.96,23.776884]
[1730420220381,20.0,168.97,168.96,23.776884]
[1730420221178,20.0,168.97,168.95,23.776884]
[1730420221681,20.0,168.98,168.95,32.76110973]
[1730420222202,5.9179,168.98,168.95,32.76110973]
[1730420222600,20.0,168.97,168.95,32.76110973]
[1730420223997,20.0,168.97,168.95,23.776884]
[1730420227198,20.0,168.97,168.95,8.98422573]
[1730420227387,5.9179,168.98,168.96,23.776884]
[1730420228494,25.9175,168.99,168.96,23.776884]
[1730420234379,5.9167,169.02,168.98,8.98422573]
[1730420234582,5.9167,169.02,169.0,23.776884]
[1730420234783,30.96642573,169.05,169.0,32.76110973]
[1730420234984,5.9157,169.04,169.0,32.76110973]
[1730420235605,5.9157,169.04,169.0,23.776884]
[1730420236185,25.9164,169.03,169.0,23.776884]
[1730420238925,25.9164,169.03,169.0,32.76110973]
[1730420239607,25.9164,169.03,169.02,8.98422573]
[1730420239811,20.0,169.03,169.02,23.776884]
[1730420239986,25.9161,169.03,169.02,23.776884]
[1730420240183,25.9161,169.03,169.01,23.902374]
[1730420242209,25.9161,169.03,169.0,23.776884]
[1730420250807,22.95797,169.03,169.0,23.776884]
[1730420271525,22.95797,169.03,168.99,23.902374]
[1730420281734,22.95797,169.03,168.99,32.88659973]
[1730420282657,22.95797,169.03,168.99,38.80389973]
[1730420282849,22.95797,169.03,168.99,32.88659973]